[Event "Early-Titled-Tuesday-Blitz-April-02-2024"]
[Site "Chess.com"]
[Date "2024.04.02"]
[Round "9"]
[White "MIss_MIaMI"]
[Black "mary-sanna"]
[Result "1-0"]
[WhiteElo "2370"]
[BlackElo "2223"]
[TimeControl "180+1"]
[EndTime "9:44:19 PDT"]
[Termination "MIss_MIaMI won on time"]

1. e4 {[%clk 0:03:00.9]} 1... c5 {[%clk 0:02:59.1]} 2. Nf3 {[%clk 0:03:01.2]}
2... Nc6 {[%clk 0:02:59.3]} 3. d4 {[%clk 0:03:01.9]} 3... cxd4 {[%clk
0:03:00.2]} 4. c3 {[%clk 0:03:02.6]} 4... d5 {[%clk 0:02:56]} 5. exd5 {[%clk
0:02:58.2]} 5... Qxd5 {[%clk 0:02:55.2]} 6. Nxd4 {[%clk 0:02:53]} 6... e5 {[%clk
0:02:21.7]} 7. Nxc6 {[%clk 0:02:44]} 7... Qxd1+ {[%clk 0:02:22.6]} 8. Kxd1
{[%clk 0:02:44.9]} 8... bxc6 {[%clk 0:02:22.7]} 9. Bc4 {[%clk 0:02:43.2]} 9...
Bc5 {[%clk 0:02:17.9]} 10. f3 {[%clk 0:02:30.9]} 10... Ne7 {[%clk 0:02:05.5]}
11. Re1 {[%clk 0:02:29.4]} 11... Ng6 {[%clk 0:01:44.3]} 12. Nd2 {[%clk 0:02:24]}
12... O-O {[%clk 0:01:34.8]} 13. Ne4 {[%clk 0:02:23.7]} 13... Be7 {[%clk
0:01:34.6]} 14. g3 {[%clk 0:02:11.5]} 14... Rd8+ {[%clk 0:01:24.2]} 15. Kc2
{[%clk 0:02:07.7]} 15... Bf5 {[%clk 0:01:23.3]} 16. g4 {[%clk 0:01:55.5]} 16...
Bxe4+ {[%clk 0:00:42.6]} 17. Rxe4 {[%clk 0:01:56.4]} 17... Bd6 {[%clk
0:00:27.7]} 18. Bg5 {[%clk 0:01:52.4]} 18... Rd7 {[%clk 0:00:25]} 19. Rd1 {[%clk
0:01:50.2]} 19... Kf8 {[%clk 0:00:22.2]} 20. h4 {[%clk 0:01:32.3]} 20... f6
{[%clk 0:00:21.9]} 21. h5 {[%clk 0:01:32.3]} 21... Ne7 {[%clk 0:00:17.6]} 22.
Bh4 {[%clk 0:01:27.9]} 22... Rad8 {[%clk 0:00:17.2]} 23. Be6 {[%clk 0:01:26.8]}
23... Rb7 {[%clk 0:00:16.5]} 24. Ra4 {[%clk 0:01:18.9]} 24... Ke8 {[%clk
0:00:07.6]} 25. Bf2 {[%clk 0:01:16.2]} 25... Nd5 {[%clk 0:00:04.4]} 26. Bxd5
{[%clk 0:01:15.6]} 26... cxd5 {[%clk 0:00:04.2]} 27. Rxd5 {[%clk 0:01:16.1]}
27... Ke7 {[%clk 0:00:03.2]} 28. Rxa7 {[%clk 0:00:59.1]} 28... Rxa7 {[%clk
0:00:04.1]} 29. Bxa7 {[%clk 0:00:59.5]} 29... Ra8 {[%clk 0:00:02.9]} 30. Ra5
{[%clk 0:01:00.1]} 1-0

[Event "Early-Titled-Tuesday-Blitz-April-02-2024"]
[Site "Chess.com"]
[Date "2024.04.02"]
[Round "9"]
[White "FGHSMN"]
[Black "wadsy27"]
[Result "1-0"]
[WhiteElo "2904"]
[BlackElo "2620"]
[TimeControl "180+1"]
[EndTime "9:44:23 PDT"]
[Termination "FGHSMN won by resignation"]

1. b3 {[%clk 0:03:00.9]} 1... d5 {[%clk 0:02:54.4]} 2. Bb2 {[%clk 0:03:00.9]}
2... c6 {[%clk 0:02:55]} 3. Nf3 {[%clk 0:03:01.2]} 3... Nf6 {[%clk 0:02:55.6]}
4. c4 {[%clk 0:02:58.4]} 4... Bg4 {[%clk 0:02:54.4]} 5. e3 {[%clk 0:02:51]} 5...
e6 {[%clk 0:02:51.3]} 6. Be2 {[%clk 0:02:51.2]} 6... Nbd7 {[%clk 0:02:51.3]} 7.
O-O {[%clk 0:02:51.3]} 7... a5 {[%clk 0:02:51.9]} 8. Nc3 {[%clk 0:02:50.7]} 8...
Bd6 {[%clk 0:02:51.4]} 9. d4 {[%clk 0:02:49.1]} 9... Qe7 {[%clk 0:02:48.6]} 10.
h3 {[%clk 0:02:48.2]} 10... Bh5 {[%clk 0:02:48.1]} 11. Nd2 {[%clk 0:02:43.3]}
11... Bxe2 {[%clk 0:02:47.1]} 12. Qxe2 {[%clk 0:02:44.2]} 12... O-O {[%clk
0:02:46.2]} 13. e4 {[%clk 0:02:43.8]} 13... dxe4 {[%clk 0:02:46.5]} 14. Ndxe4
{[%clk 0:02:43.7]} 14... Nxe4 {[%clk 0:02:47.1]} 15. Nxe4 {[%clk 0:02:44.6]}
15... a4 {[%clk 0:02:45.9]} 16. Rfd1 {[%clk 0:02:29.6]} 16... axb3 {[%clk
0:02:22.3]} 17. axb3 {[%clk 0:02:30.5]} 17... f5 {[%clk 0:02:13]} 18. Nc3 {[%clk
0:02:16.7]} 18... Nf6 {[%clk 0:02:01.7]} 19. Re1 {[%clk 0:02:14.2]} 19... Kf7
{[%clk 0:01:55.9]} 20. Qd3 {[%clk 0:02:05.7]} 20... Bc7 {[%clk 0:01:52.5]} 21.
d5 {[%clk 0:02:01.2]} 21... cxd5 {[%clk 0:01:37.6]} 22. cxd5 {[%clk 0:02:00.1]}
22... Rxa1 {[%clk 0:01:36.8]} 23. Bxa1 {[%clk 0:02:01]} 23... Qd6 {[%clk
0:01:30.5]} 24. dxe6+ {[%clk 0:01:57.7]} 24... Ke7 {[%clk 0:01:30.4]} 25. Qf3
{[%clk 0:01:21.8]} 25... Ne4 {[%clk 0:00:37.2]} 26. Nxe4 {[%clk 0:01:07.2]}
26... fxe4 {[%clk 0:00:38.1]} 27. Qxe4 {[%clk 0:01:07.7]} 27... Qh2+ {[%clk
0:00:33.3]} 28. Kf1 {[%clk 0:01:07.7]} 28... Qg3 {[%clk 0:00:28.6]} 29. Qb4+
{[%clk 0:01:03.9]} 29... Bd6 {[%clk 0:00:22.8]} 30. Qxb7+ {[%clk 0:01:00.3]}
30... Bc7 {[%clk 0:00:21.6]} 31. Bd4 {[%clk 0:00:54.3]} 31... Rb8 {[%clk
0:00:17.7]} 32. Bc5+ {[%clk 0:00:50.9]} 32... Kf6 {[%clk 0:00:15.3]} 33. fxg3
{[%clk 0:00:49.9]} 33... Rxb7 {[%clk 0:00:12.7]} 34. e7 {[%clk 0:00:50.3]} 1-0

[Event "Early-Titled-Tuesday-Blitz-April-02-2024"]
[Site "Chess.com"]
[Date "2024.04.02"]
[Round "9"]
[White "atalz0"]
[Black "Matrix3x3a"]
[Result "0-1"]
[WhiteElo "2400"]
[BlackElo "2606"]
[TimeControl "180+1"]
[EndTime "9:44:24 PDT"]
[Termination "Matrix3x3a won on time"]

1. d4 {[%clk 0:02:56.8]} 1... Nf6 {[%clk 0:02:59.4]} 2. c4 {[%clk 0:02:56.9]}
2... e6 {[%clk 0:02:58.8]} 3. Nc3 {[%clk 0:02:56.7]} 3... Bb4 {[%clk 0:02:58]}
4. Qc2 {[%clk 0:02:57]} 4... c5 {[%clk 0:02:56.7]} 5. dxc5 {[%clk 0:02:57]} 5...
Nc6 {[%clk 0:02:54.1]} 6. Nf3 {[%clk 0:02:54]} 6... Bxc5 {[%clk 0:02:53.7]} 7.
Bg5 {[%clk 0:02:51.8]} 7... h6 {[%clk 0:02:51.6]} 8. Bh4 {[%clk 0:02:49]} 8...
b6 {[%clk 0:02:49.1]} 9. Rd1 {[%clk 0:02:46.9]} 9... Bb7 {[%clk 0:02:48.4]} 10.
e3 {[%clk 0:02:21.1]} 10... O-O {[%clk 0:02:41.2]} 11. Be2 {[%clk 0:02:20.8]}
11... Be7 {[%clk 0:02:36]} 12. O-O {[%clk 0:02:20.2]} 12... Rc8 {[%clk
0:02:35.5]} 13. Rd2 {[%clk 0:02:14.3]} 13... Na5 {[%clk 0:02:30.4]} 14. Ne5
{[%clk 0:01:37.4]} 14... d5 {[%clk 0:02:22.1]} 15. cxd5 {[%clk 0:01:25.9]} 15...
Nxd5 {[%clk 0:02:19]} 16. Bxe7 {[%clk 0:01:25.9]} 16... Qxe7 {[%clk 0:02:18.3]}
17. Nxd5 {[%clk 0:01:17.4]} 17... Bxd5 {[%clk 0:02:14.1]} 18. Qa4 {[%clk
0:01:08.4]} 18... Rfd8 {[%clk 0:01:56.4]} 19. Rfd1 {[%clk 0:01:04.4]} 19... Qc7
{[%clk 0:01:53.7]} 20. f4 {[%clk 0:00:39.1]} 20... f6 {[%clk 0:01:47]} 21. e4
{[%clk 0:00:20.6]} 21... Ba8 {[%clk 0:01:35.1]} 22. Rxd8+ {[%clk 0:00:18.8]}
22... Rxd8 {[%clk 0:01:34.4]} 23. Rd7 {[%clk 0:00:15.4]} 23... Rxd7 {[%clk
0:01:28.5]} 24. Qxd7 {[%clk 0:00:15.4]} 24... Qc5+ {[%clk 0:01:21.6]} 25. Kf1
{[%clk 0:00:14.2]} 25... fxe5 {[%clk 0:01:19]} 26. Qe8+ {[%clk 0:00:14]} 26...
Qf8 {[%clk 0:01:16.6]} 27. Qxe6+ {[%clk 0:00:14.3]} 27... Kh8 {[%clk 0:01:13.5]}
28. Qxe5 {[%clk 0:00:11.9]} 28... Nc6 {[%clk 0:01:12.8]} 29. Qc7 {[%clk
0:00:11.2]} 29... Nd4 {[%clk 0:01:11.5]} 30. Bd3 {[%clk 0:00:10.1]} 30... Ne6
{[%clk 0:01:10.5]} 31. Qxa7 {[%clk 0:00:09.5]} 31... Qxf4+ {[%clk 0:01:09.5]}
32. Ke2 {[%clk 0:00:07.9]} 32... Nd4+ {[%clk 0:01:08]} 33. Kd1 {[%clk
0:00:08.1]} 33... Bxe4 {[%clk 0:01:02.8]} 34. Bxe4 {[%clk 0:00:04.8]} 34... Qxe4
{[%clk 0:01:02.8]} 35. Qb8+ {[%clk 0:00:02.4]} 35... Kh7 {[%clk 0:01:01.8]} 0-1

[Event "Early-Titled-Tuesday-Blitz-April-02-2024"]
[Site "Chess.com"]
[Date "2024.04.02"]
[Round "9"]
[White "Brahianzevich"]
[Black "Yushko_Olga"]
[Result "1-0"]
[WhiteElo "2544"]
[BlackElo "2265"]
[TimeControl "180+1"]
[EndTime "9:44:24 PDT"]
[Termination "Brahianzevich won by resignation"]

1. e4 {[%clk 0:02:58.3]} 1... Nf6 {[%clk 0:02:59.1]} 2. d3 {[%clk 0:02:56.8]}
2... d6 {[%clk 0:02:54.9]} 3. Nd2 {[%clk 0:02:57.7]} 3... g6 {[%clk 0:02:55]} 4.
Ngf3 {[%clk 0:02:57.4]} 4... Bg7 {[%clk 0:02:55.4]} 5. g3 {[%clk 0:02:57.3]}
5... O-O {[%clk 0:02:55.1]} 6. Bg2 {[%clk 0:02:58.2]} 6... Nbd7 {[%clk
0:02:55.2]} 7. O-O {[%clk 0:02:59.1]} 7... c6 {[%clk 0:02:55.5]} 8. c3 {[%clk
0:02:58.8]} 8... e5 {[%clk 0:02:54.8]} 9. a4 {[%clk 0:02:58]} 9... Qc7 {[%clk
0:02:54.6]} 10. Qe2 {[%clk 0:02:57.9]} 10... Re8 {[%clk 0:02:54.6]} 11. Re1
{[%clk 0:02:57.8]} 11... Nf8 {[%clk 0:02:54.8]} 12. Nf1 {[%clk 0:02:57.9]} 12...
Ne6 {[%clk 0:02:45.4]} 13. h3 {[%clk 0:02:56.8]} 13... Bd7 {[%clk 0:02:32.3]}
14. Ng5 {[%clk 0:02:54.9]} 14... Rad8 {[%clk 0:02:28.9]} 15. a5 {[%clk
0:02:54.1]} 15... Nc5 {[%clk 0:02:19.2]} 16. b4 {[%clk 0:02:45.7]} 16... Nb3
{[%clk 0:02:17.7]} 17. Rb1 {[%clk 0:02:43.6]} 17... Nxc1 {[%clk 0:02:18]} 18.
Rbxc1 {[%clk 0:02:44.5]} 18... Qc8 {[%clk 0:02:18]} 19. h4 {[%clk 0:02:37.9]}
19... h6 {[%clk 0:02:12.6]} 20. Nf3 {[%clk 0:02:31.2]} 20... Nh5 {[%clk
0:02:09.9]} 21. Ne3 {[%clk 0:02:21.2]} 21... Bh3 {[%clk 0:02:02.6]} 22. c4
{[%clk 0:02:04.2]} 22... Nf6 {[%clk 0:01:56.2]} 23. Rb1 {[%clk 0:01:55.4]} 23...
Bxg2 {[%clk 0:01:55]} 24. Kxg2 {[%clk 0:01:56.3]} 24... Ng4 {[%clk 0:01:55.1]}
25. b5 {[%clk 0:01:47.8]} 25... Nxe3+ {[%clk 0:01:53.3]} 26. Qxe3 {[%clk
0:01:47.6]} 26... f5 {[%clk 0:01:53.2]} 27. Qxa7 {[%clk 0:01:45]} 27... fxe4
{[%clk 0:01:51.6]} 28. dxe4 {[%clk 0:01:41.4]} 28... d5 {[%clk 0:01:44.2]} 29.
bxc6 {[%clk 0:01:38.3]} 29... bxc6 {[%clk 0:01:43.8]} 30. Rb7 {[%clk 0:01:37.7]}
30... Bf6 {[%clk 0:01:42.2]} 31. Rh7 {[%clk 0:01:34.8]} 31... Rf8 {[%clk
0:01:33.6]} 32. exd5 {[%clk 0:01:28.4]} 32... cxd5 {[%clk 0:01:33.4]} 33. Nxe5
{[%clk 0:01:28]} 33... Qf5 {[%clk 0:01:28.5]} 34. Rxh6 {[%clk 0:00:51.7]} 34...
Bg7 {[%clk 0:00:53.8]} 35. Rxg6 {[%clk 0:00:50.3]} 35... Rd7 {[%clk 0:00:40.4]}
36. Qxd7 {[%clk 0:00:45.3]} 36... Qxf2+ {[%clk 0:00:35.9]} 37. Kh3 {[%clk
0:00:45.1]} 1-0

[Event "Early-Titled-Tuesday-Blitz-April-02-2024"]
[Site "Chess.com"]
[Date "2024.04.02"]
[Round "9"]
[White "SAInt_666"]
[Black "Alen_Yeremyann"]
[Result "0-1"]
[WhiteElo "2714"]
[BlackElo "2834"]
[TimeControl "180+1"]
[EndTime "9:44:34 PDT"]
[Termination "Alen_Yeremyann won by resignation"]

1. e4 {[%clk 0:03:00.9]} 1... c5 {[%clk 0:02:54.6]} 2. Nf3 {[%clk 0:03:00.5]}
2... Nc6 {[%clk 0:02:52.6]} 3. Bb5 {[%clk 0:03:00.1]} 3... e6 {[%clk 0:02:52.4]}
4. Bxc6 {[%clk 0:02:57.6]} 4... bxc6 {[%clk 0:02:52.2]} 5. d3 {[%clk 0:02:58]}
5... e5 {[%clk 0:02:52.7]} 6. Nxe5 {[%clk 0:02:51.2]} 6... d6 {[%clk 0:02:52.8]}
7. Nf3 {[%clk 0:02:50.7]} 7... Nf6 {[%clk 0:02:51.9]} 8. h3 {[%clk 0:02:50.5]}
8... Be7 {[%clk 0:02:52.4]} 9. O-O {[%clk 0:02:50.4]} 9... O-O {[%clk
0:02:53.3]} 10. Nc3 {[%clk 0:02:49.4]} 10... Be6 {[%clk 0:02:53.8]} 11. b3
{[%clk 0:02:45.8]} 11... d5 {[%clk 0:02:53.7]} 12. Bb2 {[%clk 0:02:36.8]} 12...
h6 {[%clk 0:02:53.4]} 13. Re1 {[%clk 0:02:36.1]} 13... Re8 {[%clk 0:02:53]} 14.
Na4 {[%clk 0:02:29.7]} 14... Nd7 {[%clk 0:02:48.4]} 15. Ba3 {[%clk 0:02:19.2]}
15... Bf8 {[%clk 0:02:45.1]} 16. exd5 {[%clk 0:02:11.6]} 16... cxd5 {[%clk
0:02:42.6]} 17. Ne5 {[%clk 0:02:07.5]} 17... Nxe5 {[%clk 0:02:38.8]} 18. Rxe5
{[%clk 0:02:08.3]} 18... Bd6 {[%clk 0:02:38.1]} 19. Re1 {[%clk 0:02:02]} 19...
Rc8 {[%clk 0:02:35.9]} 20. Qf3 {[%clk 0:02:00.8]} 20... Qg5 {[%clk 0:02:36.5]}
21. Re2 {[%clk 0:01:53.3]} 21... Kh7 {[%clk 0:02:22.8]} 22. d4 {[%clk
0:01:44.6]} 22... Bf5 {[%clk 0:02:02.4]} 23. Bxc5 {[%clk 0:01:31.3]} 23... Rxe2
{[%clk 0:01:57.4]} 24. Qxe2 {[%clk 0:01:32.2]} 24... Bxh3 {[%clk 0:01:58]} 25.
Qf3 {[%clk 0:01:03.2]} 25... Bg4 {[%clk 0:01:57]} 26. Qd3+ {[%clk 0:00:26.3]}
26... Bf5 {[%clk 0:01:56.9]} 27. Qf3 {[%clk 0:00:25.5]} 27... Be4 {[%clk
0:01:57]} 28. Qh3 {[%clk 0:00:25.6]} 28... Rc6 {[%clk 0:01:16.4]} 29. Bxd6
{[%clk 0:00:21.4]} 29... Rxd6 {[%clk 0:01:17.3]} 30. Re1 {[%clk 0:00:20.5]}
30... Rg6 {[%clk 0:01:13.4]} 31. f3 {[%clk 0:00:18.3]} 31... Qd2 {[%clk
0:01:13.3]} 32. Rf1 {[%clk 0:00:11.5]} 32... Qxd4+ {[%clk 0:01:13.4]} 33. Kh1
{[%clk 0:00:09.9]} 33... Bxc2 {[%clk 0:01:14]} 34. Qd7 {[%clk 0:00:07.2]} 34...
Bd3 {[%clk 0:01:09.5]} 35. Rd1 {[%clk 0:00:04.2]} 35... Qf2 {[%clk 0:01:08.6]}
36. Qh3 {[%clk 0:00:04.6]} 36... Bf1 {[%clk 0:01:06.9]} 0-1

[Event "Early-Titled-Tuesday-Blitz-April-02-2024"]
[Site "Chess.com"]
[Date "2024.04.02"]
[Round "9"]
[White "Navyblue1"]
[Black "Dewarfd"]
[Result "1-0"]
[WhiteElo "2266"]
[BlackElo "2126"]
[TimeControl "180+1"]
[EndTime "9:44:38 PDT"]
[Termination "Navyblue1 won on time"]

1. d4 {[%clk 0:02:58.7]} 1... Nf6 {[%clk 0:02:56.1]} 2. c4 {[%clk 0:02:58.3]}
2... g6 {[%clk 0:02:55.8]} 3. Nc3 {[%clk 0:02:57.2]} 3... d5 {[%clk 0:02:55]} 4.
Nf3 {[%clk 0:02:54.8]} 4... Bg7 {[%clk 0:02:54.9]} 5. Qb3 {[%clk 0:02:54.6]}
5... c6 {[%clk 0:02:40.8]} 6. cxd5 {[%clk 0:02:43]} 6... cxd5 {[%clk 0:02:37.1]}
7. e3 {[%clk 0:02:42.3]} 7... O-O {[%clk 0:02:36.5]} 8. Be2 {[%clk 0:02:42.6]}
8... Nc6 {[%clk 0:02:35]} 9. O-O {[%clk 0:02:42.9]} 9... Bg4 {[%clk 0:02:34.3]}
10. h3 {[%clk 0:02:40.4]} 10... Bxf3 {[%clk 0:02:07.5]} 11. Bxf3 {[%clk
0:02:41.3]} 11... Na5 {[%clk 0:02:07.4]} 12. Qd1 {[%clk 0:02:32.8]} 12... e6
{[%clk 0:02:06]} 13. b3 {[%clk 0:02:30.4]} 13... Rc8 {[%clk 0:02:04]} 14. Bb2
{[%clk 0:02:30.8]} 14... Qd7 {[%clk 0:01:56.8]} 15. Rc1 {[%clk 0:02:29.5]} 15...
Rc7 {[%clk 0:01:54.1]} 16. Qd2 {[%clk 0:02:23.3]} 16... b6 {[%clk 0:01:31.1]}
17. Be2 {[%clk 0:02:18.3]} 17... Rfc8 {[%clk 0:01:25.6]} 18. Bd3 {[%clk
0:02:18]} 18... Bf8 {[%clk 0:01:05.9]} 19. Ne2 {[%clk 0:02:04.6]} 19... Rxc1
{[%clk 0:01:02.2]} 20. Rxc1 {[%clk 0:02:02.8]} 20... Rxc1+ {[%clk 0:00:59.3]}
21. Qxc1 {[%clk 0:02:03.7]} 21... Qc6 {[%clk 0:00:59.1]} 22. Qxc6 {[%clk
0:01:49.9]} 22... Nxc6 {[%clk 0:00:58.3]} 23. a3 {[%clk 0:01:48.4]} 23... Na5
{[%clk 0:00:51.3]} 24. Bc2 {[%clk 0:01:47.7]} 24... Ne4 {[%clk 0:00:45.6]} 25.
Bc1 {[%clk 0:01:39.8]} 25... Bd6 {[%clk 0:00:34.1]} 26. f3 {[%clk 0:01:35.1]}
26... Ng3 {[%clk 0:00:23.9]} 27. Nxg3 {[%clk 0:01:35.1]} 27... Bxg3 {[%clk
0:00:23.4]} 28. Kf1 {[%clk 0:01:35.7]} 28... Kf8 {[%clk 0:00:20.5]} 29. Ke2
{[%clk 0:01:36]} 29... Ke7 {[%clk 0:00:19.8]} 30. Bd2 {[%clk 0:01:33]} 30... Kd6
{[%clk 0:00:17.9]} 31. Bxa5 {[%clk 0:01:27.9]} 31... bxa5 {[%clk 0:00:17.7]} 32.
Bd3 {[%clk 0:01:26.2]} 32... Kc6 {[%clk 0:00:17.5]} 33. a4 {[%clk 0:01:23.8]}
33... h6 {[%clk 0:00:16]} 34. Bb5+ {[%clk 0:01:23.5]} 34... Kd6 {[%clk
0:00:15.9]} 35. Be8 {[%clk 0:01:24]} 35... Ke7 {[%clk 0:00:15.3]} 36. Bb5 {[%clk
0:01:23.7]} 36... Bd6 {[%clk 0:00:14.9]} 37. e4 {[%clk 0:01:19.1]} 37... dxe4
{[%clk 0:00:13.2]} 38. fxe4 {[%clk 0:01:18.6]} 38... Bb4 {[%clk 0:00:14.1]} 39.
Bc4 {[%clk 0:01:17.8]} 39... f5 {[%clk 0:00:13.4]} 40. Kf3 {[%clk 0:01:14.2]}
40... g5 {[%clk 0:00:07.5]} 41. exf5 {[%clk 0:01:11.4]} 41... exf5 {[%clk
0:00:07.4]} 42. Bd3 {[%clk 0:01:06.9]} 42... Kf6 {[%clk 0:00:06.9]} 43. g3
{[%clk 0:01:05.6]} 43... Bd6 {[%clk 0:00:04.4]} 44. g4 {[%clk 0:01:04.4]} 1-0

[Event "Early-Titled-Tuesday-Blitz-April-02-2024"]
[Site "Chess.com"]
[Date "2024.04.02"]
[Round "9"]
[White "Gabcur"]
[Black "Kratos031"]
[Result "1-0"]
[WhiteElo "2350"]
[BlackElo "2452"]
[TimeControl "180+1"]
[EndTime "9:44:44 PDT"]
[Termination "Gabcur won on time"]

1. d4 {[%clk 0:03:00.9]} 1... Nf6 {[%clk 0:02:59.3]} 2. c4 {[%clk 0:03:00.9]}
2... e6 {[%clk 0:02:59.3]} 3. Nc3 {[%clk 0:03:01.2]} 3... Bb4 {[%clk 0:02:59]}
4. f3 {[%clk 0:03:01.5]} 4... d5 {[%clk 0:02:57.2]} 5. a3 {[%clk 0:03:01.6]}
5... Bxc3+ {[%clk 0:02:56.4]} 6. bxc3 {[%clk 0:03:02.5]} 6... O-O {[%clk
0:02:56.6]} 7. cxd5 {[%clk 0:03:02.7]} 7... exd5 {[%clk 0:02:56.8]} 8. e3 {[%clk
0:03:01.8]} 8... c5 {[%clk 0:02:56.9]} 9. Bd3 {[%clk 0:03:00.7]} 9... Nc6 {[%clk
0:02:57.2]} 10. Ne2 {[%clk 0:02:59.8]} 10... Re8 {[%clk 0:02:57.2]} 11. O-O
{[%clk 0:02:59.1]} 11... Be6 {[%clk 0:02:49.7]} 12. Ng3 {[%clk 0:02:57.9]} 12...
Qa5 {[%clk 0:02:47.2]} 13. Bd2 {[%clk 0:02:47.5]} 13... c4 {[%clk 0:02:44.7]}
14. Bc2 {[%clk 0:02:45.4]} 14... Rad8 {[%clk 0:02:31.8]} 15. e4 {[%clk
0:02:30.8]} 15... dxe4 {[%clk 0:02:30.9]} 16. fxe4 {[%clk 0:02:31]} 16... Bg4
{[%clk 0:02:28.6]} 17. Qc1 {[%clk 0:02:20]} 17... Nh5 {[%clk 0:01:56.9]} 18. Nh1
{[%clk 0:01:53.2]} 18... Qc7 {[%clk 0:01:11.3]} 19. Qe1 {[%clk 0:01:39.9]} 19...
Qd7 {[%clk 0:00:57.1]} 20. Be3 {[%clk 0:01:24.5]} 20... f5 {[%clk 0:00:29.5]}
21. Qh4 {[%clk 0:01:14.6]} 21... Be2 {[%clk 0:00:14.4]} 22. Rxf5 {[%clk
0:01:05.7]} 22... Nf6 {[%clk 0:00:12.1]} 23. Rxf6 {[%clk 0:01:01.2]} 23... gxf6
{[%clk 0:00:12.1]} 24. Ng3 {[%clk 0:01:01.4]} 24... Bd3 {[%clk 0:00:11.6]} 25.
Nh5 {[%clk 0:01:01.5]} 25... Rf8 {[%clk 0:00:08.5]} 26. Ba4 {[%clk 0:00:51.8]}
26... Qf7 {[%clk 0:00:05.5]} 27. Bh6 {[%clk 0:00:43.7]} 27... Qg6 {[%clk
0:00:05.4]} 28. Bxf8 {[%clk 0:00:42]} 28... Rxf8 {[%clk 0:00:06.3]} 29. Re1
{[%clk 0:00:35]} 29... Rf7 {[%clk 0:00:05.3]} 30. Bd1 {[%clk 0:00:32.6]} 1-0

[Event "Early-Titled-Tuesday-Blitz-April-02-2024"]
[Site "Chess.com"]
[Date "2024.04.02"]
[Round "9"]
[White "jumpingknight20"]
[Black "eljanov"]
[Result "0-1"]
[WhiteElo "2711"]
[BlackElo "2898"]
[TimeControl "180+1"]
[EndTime "9:44:47 PDT"]
[Termination "eljanov won by resignation"]

1. e4 {[%clk 0:03:00.9]} 1... c6 {[%clk 0:03:00.9]} 2. d4 {[%clk 0:02:59.2]}
2... d5 {[%clk 0:03:01.8]} 3. e5 {[%clk 0:02:59.7]} 3... Bf5 {[%clk 0:03:01.5]}
4. Nf3 {[%clk 0:03:00.2]} 4... e6 {[%clk 0:03:01.6]} 5. Be2 {[%clk 0:03:00.4]}
5... Nd7 {[%clk 0:03:01]} 6. Nbd2 {[%clk 0:02:56.1]} 6... a5 {[%clk 0:03:01.6]}
7. a4 {[%clk 0:02:55.2]} 7... f6 {[%clk 0:02:58.5]} 8. exf6 {[%clk 0:02:51.2]}
8... Ngxf6 {[%clk 0:02:58.2]} 9. O-O {[%clk 0:02:49.7]} 9... Bd6 {[%clk
0:02:57.1]} 10. Nh4 {[%clk 0:02:37.9]} 10... O-O {[%clk 0:02:48.5]} 11. Nxf5
{[%clk 0:02:37.4]} 11... exf5 {[%clk 0:02:48.4]} 12. c4 {[%clk 0:02:32.2]} 12...
Kh8 {[%clk 0:02:29.4]} 13. h3 {[%clk 0:02:29.8]} 13... Rc8 {[%clk 0:01:49.1]}
14. b3 {[%clk 0:02:24]} 14... Ne4 {[%clk 0:01:46.6]} 15. Bb2 {[%clk 0:02:16.1]}
15... Qf6 {[%clk 0:01:29]} 16. Nf3 {[%clk 0:02:10.6]} 16... Rce8 {[%clk
0:01:29.2]} 17. Bd3 {[%clk 0:02:03.5]} 17... g5 {[%clk 0:01:28.9]} 18. cxd5
{[%clk 0:01:49.2]} 18... cxd5 {[%clk 0:01:25.5]} 19. Bb5 {[%clk 0:01:49.1]}
19... Re7 {[%clk 0:01:21.2]} 20. Bxd7 {[%clk 0:01:42.9]} 20... Rxd7 {[%clk
0:01:22.1]} 21. Rc1 {[%clk 0:01:31.1]} 21... g4 {[%clk 0:01:16.7]} 22. hxg4
{[%clk 0:01:28.8]} 22... fxg4 {[%clk 0:01:15.8]} 23. Ne5 {[%clk 0:01:28.9]}
23... Rg7 {[%clk 0:01:16.4]} 24. f3 {[%clk 0:01:11.8]} 24... Ng3 {[%clk
0:01:07.1]} 25. Re1 {[%clk 0:00:49.1]} 25... Qh4 {[%clk 0:01:03.7]} 26. Re3
{[%clk 0:00:28.2]} 26... gxf3 {[%clk 0:00:59.1]} 27. Rxf3 {[%clk 0:00:26]} 27...
Qh1+ {[%clk 0:00:50.4]} 28. Kf2 {[%clk 0:00:26.1]} 28... Ne4+ {[%clk 0:00:50.8]}
29. Ke3 {[%clk 0:00:26.8]} 29... Qh6+ {[%clk 0:00:45.1]} 30. Kd3 {[%clk
0:00:25.6]} 30... Rxf3+ {[%clk 0:00:37.7]} 31. gxf3 {[%clk 0:00:23.8]} 31...
Nf2+ {[%clk 0:00:37.3]} 32. Ke2 {[%clk 0:00:22.7]} 32... Nxd1 {[%clk 0:00:28.2]}
33. Rc8+ {[%clk 0:00:22.5]} 33... Rg8 {[%clk 0:00:28.6]} 34. Nf7+ {[%clk
0:00:23.1]} 34... Kg7 {[%clk 0:00:29]} 35. Rxg8+ {[%clk 0:00:23.1]} 35... Kxf7
{[%clk 0:00:29]} 0-1